Cogmind - Beta 16 @@@ ROGUE MODE // 2025.10.22 @ 15:51:55 Player: ALICE_MARGADROID_V-02 Result: Destroyed by H-55 Commando with Assault Rifle Performance ------------- Evolutions (3) 1500 Regions Visited (6) 1200 Robots Destroyed (228) 1140 Value Destroyed (6948) 6948 Prototype IDs (40) 800 Alien Tech Used (0) 0 Bonus (2376) 2376 TOTAL SCORE: 13964 Bonus ------- Triggered High Security 500 High Alert Combat Kills 2767 Follower Combat Kills 20 Friendly Fire -911 Cogmind --------- Core Integrity 0/700 Matter 73/300 Energy 30/100 System Corruption 11% Temperature Warm (152) Movement Flying (35) Location -7/Factory Parts ------- > --- POWER (1) -------- (None) > --- PROPULSION (3) --- Cooled VTOL Module > --- UTILITY (5) ------ (None) > --- WEAPON (4) ------- (None) > --- INVENTORY (5) ---- Transport Network Coupler Heavy Armor Plating Dispersion Rifle Dispersion Rifle Peak State ------------ > --- POWER ------------ Light Neutrino Core > --- PROPULSION ------- Enhanced Armored Leg Enhanced Armored Leg Enhanced Armored Leg > --- UTILITY ---------- High-capacity Storage Unit Core Analyzer Improved Light Armor Plating Medium Reactive Plating Hacking Suite > --- WEAPON ----------- Enhanced Autogun Enhanced Autogun Gauss Rifle Gauss Rifle > --- INVENTORY -------- Improved Deuterium Engine Armored Treads Advanced Treads Advanced Treads Cooled VTOL Module Improved Cooling System YI-UF0's Bottomless Matter Pit Seismic Detector Heavy Armor Plating Hardened Light Armor Plating Hacking Suite Authchip [Propulsion] Authchip [Weapon] Splice Drone Bay Enhanced Autogun Improved KE Penetrator Improved Proton Missile Launcher Improved Proton Missile Launcher YI-UF0's Doublenader [Rating: 67] Favorites ----------- Power Ion Engine Engine Ion Engine Power Core Light Nuclear Core Propulsion Light Treads Treads Light Treads Leg Enhanced Armored Leg Wheel Compact Wheel Utility High-capacity Storage Unit Device Shield Generator Storage High-capacity Storage Unit Processor Transport Network Coupler Hackware Hacking Suite Protection Hardened Medium Armor Plating Weapon Gauss Rifle Energy Gun Pulse Rifle Energy Cannon Cooled Particle Cannon Ballistic Gun Gauss Rifle Ballistic Cannon Gauss Cannon Launcher Grenade Launcher Slashing Weapon Scythe Build | -11 -10 -10 -10 -9 -8 -7 ------- Run | Yrd Mat Min Exi Min Mat Fac Slots Evolved 6 | . . . . . 4 2 Power . | . . . . . . . Propulsion 1 | . . . . . 1 . Utility 3 | . . . . . 1 2 Weapon 2 | . . . . . 2 . Parts Attached 118 | 6 13 12 3 2 25 57 Power 14 | 1 1 3 1 . 2 6 Engine 9 | 1 1 2 . . 1 4 Core 5 | . . 1 1 . 1 2 Reactor . | . . . . . . . Propulsion 30 | 2 2 2 1 1 8 14 Treads 20 | . 2 2 1 1 8 6 Leg 7 | 2 . . . . . 5 Wheel 2 | . . . . . . 2 Hover . | . . . . . . . Flight 1 | . . . . . . 1 Utility 27 | 1 3 . . . 7 16 Device 8 | . . . . . 3 5 Storage 5 | 1 2 . . . 1 1 Processor 5 | . 1 . . . 1 3 Hackware 1 | . . . . . . 1 Protection 8 | . . . . . 2 6 Artifact . | . . . . . . . Weapon 47 | 2 7 7 1 1 8 21 Energy Gun 7 | . 1 1 . . . 5 Energy Cannon 1 | . . . . . . 1 Ballistic Gun 25 | 2 . 3 1 1 8 10 Ballistic Cannon 2 | . 1 . . . . 1 Launcher 10 | . 5 2 . . . 3 Special Weapon . | . . . . . . . Impact Weapon . | . . . . . . . Slashing Weapon 2 | . . 1 . . . 1 Piercing Weapon . | . . . . . . . Special Melee Weapon . | . . . . . . . Unidentified Prototypes 12 | . . 1 . . 3 8 Parts Lost 25 | . 1 1 . . . 23 Power 2 | . . 1 . . . 1 Propulsion 6 | . . . . . . 6 Utility 3 | . . . . . . 3 Weapon 14 | . 1 . . . . 13 Highest Loss Streak 11 | . 1 1 . . . 11 To Critical Strikes . | . . . . . . . Average Backups 20 | 1 17 19 19 20 18 23 Power 1 | . 2 1 1 1 1 1 Propulsion 3 | . 2 3 4 3 3 4 Utility 8 | . 4 7 7 8 8 12 Weapon 6 | . 8 7 7 7 6 5 Tool/Special . | . . . . . . . Unused Backups 35 | . 6 4 . 1 11 13 Power 1 | . . 1 . . . . Propulsion 3 | . . . . . 2 1 Utility 19 | . . 2 . 1 5 11 Weapon 12 | . 6 1 . . 4 1 Tool/Special . | . . . . . . . Average Slot Usage (%) 96 | . 95 99 99 100 99 93 Engine 6 | . 14 10 4 . 4 4 Core 3 | . . 3 9 14 4 2 Treads 19 | . 25 28 28 28 27 7 Leg 5 | . 2 . . . . 13 Device 2 | . . . . . 4 2 Storage 10 | . 14 14 14 14 9 7 Processor 10 | . 12 14 14 14 9 7 Hackware 2 | . . . . . . 6 Protection 3 | . . . . . 3 6 Energy Gun 2 | . 2 3 10 . . . Ballistic Gun 21 | . 17 13 2 18 33 25 Launcher 1 | . 4 5 . 1 . . Slashing Weapon 3 | . . 3 14 9 2 1 Peak Build Rating 67 | 6 10 16 19 21 38 67 Average Rating 32 | 4 8 13 17 20 31 55 On Entrance 15 | . 6 10 16 19 21 38 Avg Prop Armor Cover (%) 6 | . . . . . . 6 Naked Turns 1 | . . . . . . 1 Heaviest Build 190 | 14 51 53 53 53 65 190 Greatest Support 64 | 20 40 40 40 40 64 64 Greatest Overweight (x) 9 | . 1 1 1 1 1 9 Average Overweight (x) 1 | . . 1 1 1 . 2 Largest Inventory Capacity 30 | 8 20 20 20 20 20 30 Average Capacity 21 | 5 18 20 20 20 20 26 Most Carried 30 | 4 20 20 20 20 20 30 Average Carried 21 | 1 17 19 19 19 19 25 Final Capacity 20 | 8 20 20 20 20 20 5 Final Carried 20 | 4 20 20 20 20 20 5 Class Distribution -------------------- 23% | Mutant 19% | Scavenger-Gunner 16% | Scavenger-Mutant 15% | Hauler-Gunner 12% | Gunner 9% | Scavenger-Tank Dominant Class ---------------- Mutant | -10/Materials Scavenger-Mutant | -10/Mines Scavenger-Mutant | -10/Exiles Scavenger-Mutant | -9/Mines Gunner | -8/Materials Hauler-Gunner | -7/Factory Resources | -11 -10 -10 -10 -9 -8 -7 ----------- Run | Yrd Mat Min Exi Min Mat Fac Matter Collected 7321 | 284 376 440 58 . 1856 4307 Remotely . | . . . . . . . Salvage Created 8365 | 93 540 452 386 68 1869 4957 Parts 442 | 1 46 25 17 7 95 251 Haulers Intercepted 12 | . 2 . . . 6 4 Recyclers Shooed 15 | 1 2 . . 1 2 9 Parts Field Recycled . | . . . . . . . Retrieved Matter . | . . . . . . . Parts Self-Destructed . | . . . . . . . Prevented . | . . . . . . . Parts Restored . | . . . . . . . Kills | -11 -10 -10 -10 -9 -8 -7 ------- Run | Yrd Mat Min Exi Min Mat Fac Combat Hostiles Destroyed 134 | . 14 7 1 4 23 85 Melee 4 | . . . 1 . . 3 Guns 67 | . 1 3 . 1 19 43 Cannons 5 | . . 4 . . . 1 AOE 56 | . 13 . . 3 4 36 Classes Destroyed 19 | 1 8 1 1 1 . 7 Worker 14 | . 2 1 . . 5 6 Builder 14 | . 1 . . 2 1 10 Tunneler 5 | . 1 2 . . 1 1 Hauler 12 | . 2 . . . 6 4 Recycler 35 | 1 1 2 . . 10 21 Mechanic 2 | . . . . . . 2 Operator 4 | . 2 . . . 1 1 Watcher 7 | . 2 . . . 5 . Swarmer 22 | . 2 3 . . 6 11 Grunt 65 | . 12 2 . 3 10 38 Brawler 4 | . . . . . . 4 Duelist 2 | . . . . . . 2 Protector 4 | . . . . . . 4 Sentry 10 | . . 2 . . 6 2 Demolisher 1 | . . . . 1 . . Specialist 9 | . . . . . . 9 Hunter 9 | . . . 1 . 1 7 Programmer 8 | . . . . . . 8 Heavy 1 | . . . . . . 1 Best Kill Streak 28 | 1 7 3 1 6 7 28 Combat Bots Only 14 | . 4 3 1 4 4 14 Max Kills in Single Turn 7 | 1 5 1 1 2 2 7 Gunslinging . | . . . . . . . Exploded 7 | . 3 . . 1 2 7 Melee 1 | . . . 1 . . 1 Uniques/NPCs Destroyed 1 | . . 1 . . . . YI-UF0 (-10/Mines) Combat | -11 -10 -10 -10 -9 -8 -7 -------- Run | Yrd Mat Min Exi Min Mat Fac Hostile Shots Fired 656 | . 45 46 . 9 74 482 Missed 190 | . 13 11 . 3 23 140 Hits 466 | . 32 35 . 6 51 342 Melee 7 | . . . . . . 7 Projectile 459 | . 32 35 . 6 51 335 AOE 8 | . . . . 7 . 1 Critical Strikes 14 | . 1 . . . 3 10 Damage Taken 7825 | . 431 503 . 311 603 5977 Core 957 | . 76 51 . 40 82 708 Absorbed by Shields 228 | . . . . . 155 73 Ignored by Resistances 169 | . . . . . . 169 Regen/Repaired (Parts) 67 | . . . . . 67 . Core Remaining (%) 72 | 100 . . . 33 85 . Volleys Fired 300 | 4 33 29 1 7 64 162 Largest 4 | 2 2 2 1 2 4 4 Hottest 121 | 40 60 93 28 70 106 121 Shots Fired 871 | 8 61 54 1 10 237 500 Gun 783 | 8 43 37 1 7 234 453 Cannon 35 | . . 16 . . . 19 Launcher 53 | . 18 1 . 3 3 28 Special . | . . . . . . . Kinetic 778 | 8 35 49 1 7 234 444 Thermal 40 | . 8 4 . . . 28 Explosive 48 | . 18 1 . 3 3 23 Electromagnetic 5 | . . . . . . 5 Robot Hit Streak 18 | 2 6 11 3 4 18 16 Robot Miss Streak 8 | 4 5 4 . 1 8 7 Penetration Max 1 | . . . . . 1 1 Secondary Targets 17 | . . 1 . 1 4 11 Max Gunslinging Chain 1 | . . 1 . 1 1 1 Shots Hit Robots 507 | 3 29 41 12 8 138 276 Core Hits 472 | 2 41 15 8 8 87 311 Critical Kills . | . . . . . . . Critical Parts Destroyed 3 | . . . . . . 3 Critical Strikes 9 | . . 1 1 . . 7 Burn 3 | . . . . . . 3 Destroy 3 | . . . . . . 3 Blast 2 | . . 1 . . . 1 Sever 1 | . . . 1 . . . Melee Attacks 37 | . . 2 11 . 20 4 Impact . | . . . . . . . Slashing 37 | . . 2 11 . 20 4 Piercing . | . . . . . . . Sneak Attacks 8 | . . 2 1 . 3 2 Combat Hostiles . | . . . . . . . Follow-up Attacks . | . . . . . . . Damage Inflicted 19933 | 39 1468 770 715 431 3293 13217 Guns 8548 | 39 315 343 18 85 2663 5085 Cannons 475 | . . 286 . . . 189 Explosions 9512 | . 1136 13 . 346 283 7734 Melee 1226 | . . 125 697 . 245 159 Ramming 172 | . 17 3 . . 102 50 Kinetic 8447 | 39 284 564 18 85 2663 4794 Thermal 1707 | . 31 65 . . . 1611 Explosive 7386 | . 1136 13 . 346 283 5608 Electromagnetic 995 | . . . . . . 995 Impact . | . . . . . . . Slashing 1226 | . . 125 697 . 245 159 Piercing . | . . . . . . . Highest Corruption 11 | . 1 1 1 1 . 11 Average Corruption 2 | . 1 1 1 1 . 4 Corruption Purged 3 | . . . . . . 3 Corruption Blocked . | . . . . . . . Effects 93 | . 4 7 9 . . 73 Message Errors 24 | . . 3 3 . . 18 Matter Fused 18 | . 1 2 2 . . 13 Heat Flow Errors 18 | . . 1 3 . . 14 Energy Discharges 9 | . 2 1 . . . 6 Parts Rejected 1 | . 1 . . . . . Parts Fused 1 | . . . . . . 1 Data Loss (minor) 6 | . . . 1 . . 5 Data Loss (major) 5 | . . . . . . 5 Misfires 5 | . . . . . . 5 Alerts 3 | . . . . . . 3 Weapon Failures 3 | . . . . . . 3 Overload Shots . | . . . . . . . Overflow Damage 1092 | . 6 24 54 . 89 919 Projectiles . | . . . . . . . Explosions 900 | . 6 . . . . 894 Melee 192 | . . 24 54 . 89 25 Knockbacks 2 | . . . . . 1 1 Impact 1 | . . . . . 1 . Kinetic 1 | . . . . . . 1 Secondary . | . . . . . . . Self-Inflicted Damage 495 | . 42 48 . . . 405 Shots 11 | . 2 1 . . . 8 Rammed 15 | . 3 2 . . 7 3 Targets Rammed 23 | . 3 2 . . 9 9 Kicked 4 | . . . . . . 4 Crushed 4 | . . . . . 2 2 Highest Temperature 449 | . 30 133 177 117 192 449 Average Temperature 78 | . 11 35 83 56 31 99 Received Heat Transfer 2363 | . 222 165 . 45 266 1665 Effects 9 | . . . . . . 9 Shutdowns 3 | . . . . . . 3 Energy Bleed 1 | . . . . . . 1 Interference 5 | . . . . . . 5 Siege Activations . | . . . . . . . Martial Activations . | . . . . . . . Shielding Activations . | . . . . . . . Robots Disrupted 1 | . . . . . . 1 Combat Hostiles 1 | . . . . . . 1 Robots Corrupted 3 | . . . . . 1 2 Combat Hostiles 2 | . . . . . . 2 Parts Fried 9 | . . . . . . 9 Impact Corruptions 2 | . . . . . 2 . Robots Melted . | . . . . . . . Combat Hostiles . | . . . . . . . Parts Melted 3 | . . . . . . 3 Heat Transferred 1816 | . 75 148 . . . 1593 Parts Sabotaged . | . . . . . . . Parts Stolen . | . . . . . . . Parts Stripped . | . . . . . . . Power Chain Reactions 1 | . . . . . . 1 Alert | -11 -10 -10 -10 -9 -8 -7 ------- Run | Yrd Mat Min Exi Min Mat Fac Maximum Alert Level 5 | . 1 . . . 2 5 Low Security (%) 50 | 100 99 100 . 100 50 14 Level 1 11 | . . . . . 34 4 Level 2 4 | . . . . . 14 . Level 3 7 | . . . . . . 18 Level 4 14 | . . . . . . 33 Level 5 9 | . . . . . . 22 High Security 1 | . . . . . . 4 Max Security . | . . . . . . . Peak Influence 2288 | 5 202 100 . 115 516 2288 Initial 228 | . . 24 . . 37 228 Average 574 | . 96 18 . 27 180 1201 Influence Increases 4949 | 5 565 230 40 115 910 3084 Destroy 0b10 Robot/C 2620 | . 280 140 20 80 460 1640 Destroy 0b10 Robot/NC 505 | 5 55 25 20 10 145 245 Destroy Leader 586 | . 78 20 . 10 142 336 Allied During Kill 33 | . . . . . . 33 Successful Hack 83 | . 12 5 . . 46 20 Disable Machine 675 | . 45 30 . . 60 540 Destroy Structure 357 | . 80 10 . 15 42 210 Lose Combat Pursuer 90 | . 15 . . . 15 60 Influence Decreases 2661 | 5 501 294 40 20 501 1300 Entered New Map 374 | . . 40 . . 58 276 Time Decay 1977 | 5 491 244 40 20 443 734 Lost Part 250 | . 10 10 . . . 230 Lost Ally 60 | . . . . . . 60 Squads Dispatched 38 | . 5 1 . . 1 31 Investigation 9 | . 3 1 . . . 5 Extermination 5 | . . . . . . 5 Reinforcement 15 | . 2 . . . 1 12 Assault 9 | . . . . . . 9 Garrison . | . . . . . . . Intercept . | . . . . . . . Searches Triggered . | . . . . . . . Construction Impeded 3 | . . . . . . 3 Haulers Reinforced 1 | . . . . . . 1 Active Scanning Responses . | . . . . . . . Cargo Convoy Interrupts 1 | . . . . . . 1 Stealth | -11 -10 -10 -10 -9 -8 -7 --------- Run | Yrd Mat Min Exi Min Mat Fac Distress Signals 3 | . 1 . . . 1 1 Communications Jammed . | . . . . . . . Distress Signals . | . . . . . . . Times Spotted 214 | . 25 7 . 5 44 133 Peak Tracking Total 14 | . 7 3 . 3 5 14 Tactical Retreats 5 | . 1 . . . 1 3 Traps | -11 -10 -10 -10 -9 -8 -7 ------- Run | Yrd Mat Min Exi Min Mat Fac Traps Triggered 3 | . 1 . . . . 2 Indirectly . | . . . . . . . Trap Hack Attempts . | . . . . . . . Triggered . | . . . . . . . Disarmed . | . . . . . . . Reprogrammed . | . . . . . . . Reused . | . . . . . . . Traps Extracted . | . . . . . . . Installed . | . . . . . . . Triggered . | . . . . . . . Machines | -11 -10 -10 -10 -9 -8 -7 ---------- Run | Yrd Mat Min Exi Min Mat Fac Machines Disabled 45 | . 3 2 . . 4 36 Max in Single Turn 8 | . 2 1 . . 1 8 Garrison Access 1 | . . . . . . 1 Machines Repaired . | . . . . . . . Machines Dismantled . | . . . . . . . Machines Sabotaged . | . . . . . . . Overloaded Fab Kills . | . . . . . . . Hacking | -11 -10 -10 -10 -9 -8 -7 --------- Run | Yrd Mat Min Exi Min Mat Fac Machines Accessed 33 | . 6 2 1 1 11 12 Terminals 17 | . 5 1 . . 7 4 Fabricators 4 | . . . . . . 4 Repair Stations 2 | . . . . . 1 1 Recycling Units 1 | . 1 . . . . . Scanalyzers 4 | . . . . . 2 2 Garrison Access 2 | . . . . . 1 1 Total Hacks 87 | . 15 2 1 1 36 32 Successful 44 | . 4 2 1 1 23 13 Failed 42 | . 11 . . . 12 19 Catastrophic 12 | . 7 . . . 2 3 Database Lockouts 1 | . . . . . 1 . Manual 31 | . 10 . 1 . 11 9 Terminals 43 | . 13 1 . . 20 9 Fabricators 10 | . . . . . . 10 Repair Stations 5 | . . . . . 2 3 Recycling Units 2 | . 2 . . . . . Scanalyzers 17 | . . . . . 10 7 Garrison Access 7 | . . . . . 4 3 Terminal Hacks 17 | . 3 2 1 1 10 . Prototype ID Bank 2 | . . . . . 2 . Open Door 2 | . . 1 . 1 . . Branch Access Points 2 | . 1 . . . 1 . Terminal Index 1 | . . . . . 1 . Alert Level 1 | . . . . . 1 . Transport Status 1 | . . . . . 1 . Hauler Manifests 2 | . 1 . . . 1 . Zone Layout 5 | . 1 1 . . 3 . Proto ID Catalog 1 | . . . 1 . . . Fabricator Hacks 2 | . . . . . . 2 Network Status 1 | . . . . . . 1 Build 1 | . . . . . . 1 Repair Station Hacks 3 | . . . . . 2 1 Scan Component 2 | . . . . . 1 1 Repair 1 | . . . . . 1 . Recycling Unit Hacks 1 | . 1 . . . . . Retrieve Components 1 | . 1 . . . . . Scanalyzer 13 | . . . . . 7 6 Insert Component 4 | . . . . . 2 2 Analyze 4 | . . . . . 1 3 Retrieve Study 5 | . . . . . 4 1 Garrison Access Hacks 1 | . . . . . . 1 Seal Access 1 | . . . . . . 1 Unauthorized Hacks 7 | . . . . . 4 3 Terminals 4 | . . . . . 4 . Botnet 4 | . . . . . 4 . Fabricators 3 | . . . . . . 3 Prioritize 1 | . . . . . . 1 Liberate 2 | . . . . . . 2 Repair Stations . | . . . . . . . Recycling Units . | . . . . . . . Scanalyzers . | . . . . . . . Garrison Access . | . . . . . . . Data Cores Recovered . | . . . . . . . Used . | . . . . . . . Hacking Detections 27 | . 5 1 . . 9 12 Full Trace Events 7 | . 2 . . . . 5 Feedback Events 1 | . 1 . . . . . Corruption 1 | . 1 . . . . . Feedback Blocked . | . . . . . . . Robot Schematics Acquired . | . . . . . . . Robots Built . | . . . . . . . Authchips . | . . . . . . . Time . | . . . . . . . Total Robot Build Rating . | . . . . . . . Part Schematics Acquired 3 | . . . . . 1 2 Parts Built 2 | . . . . . . 2 Authchips . | . . . . . . . Time 117 | . . . . . . 117 Total Part Build Rating 14 | . . . . . . 14 Part Studies Acquired 4 | . . . . . 3 1 Parts Repaired 1 | . . . . . 1 . Time 44 | . . . . . 44 . Parts Recycled . | . . . . . . . Recycled Matter . | . . . . . . . Retrieved Matter . | . . . . . . . Retrieved Components 4 | . 4 . . . . . Parts Scanalyzed 3 | . . . . . 1 2 Part Schematics Acquired 3 | . . . . . 1 2 Parts Damaged . | . . . . . . . Bothacking | -11 -10 -10 -10 -9 -8 -7 ------------ Run | Yrd Mat Min Exi Min Mat Fac Used RIF Installer . | . . . . . . . Robots Hacked . | . . . . . . . Non-combat . | . . . . . . . Combat . | . . . . . . . Robot Hacks Applied . | . . . . . . . Relay Couplers Released 4 | . . . . . . 4 Programmers 4 | . . . . . . 4 Fabnet Peak Effective % . | . . . . . . . Robots Rewired 2 | . . . 2 . . . Allies Hacked . | . . . . . . . Hacks Repelled . | . . . . . . . Allies | -11 -10 -10 -10 -9 -8 -7 -------- Run | Yrd Mat Min Exi Min Mat Fac Total Allies 8 | . . . 2 . . 6 Largest Group 4 | . . . 2 2 . 4 Highest-Rated Group 62 | . . . 29 29 . 62 Highest-Rated Ally 21 | . . . 21 21 . 16 Total Orders 2 | . . . . . 1 1 EXPLORE 1 | . . . . . . 1 RETURN 1 | . . . . . 1 . Ally Attacks 49 | . . . . 1 . 48 Total Damage 654 | . . . . 17 . 637 Kills 3 | . . . . . . 3 Allies Corrupted . | . . . . . . . Allies Melted 1 | . . 1 . . . . Intel | -11 -10 -10 -10 -9 -8 -7 ------- Run | Yrd Mat Min Exi Min Mat Fac Active Infowar (turns) 5387 | . 1454 1004 1383 127 451 968 Optics 384 | . . . . . . 384 Seismic 584 | . . . . . . 584 T.N.C. 4419 | . 1454 1004 1383 127 451 . Robot Analysis Total . | . . . . . . . Derelict Logs Recovered 1 | . . 1 . . . . Drone Launches 2 | . . . . . 1 1 Drone Recoveries 1 | . . . . . 1 . Exploration | -11 -10 -10 -10 -9 -8 -7 ------------- Run | Yrd Mat Min Exi Min Mat Fac Turns Passed 10543 | 84 1612 1004 1383 127 2471 3862 Spaces Moved 4007 | 56 650 365 541 43 1001 1351 Core 12 | 10 . . . . . 2 Treads 2986 | . 586 365 541 43 1001 450 Legs 781 | 46 64 . . . . 671 Wheels 228 | . . . . . . 228 Hover . | . . . . . . . Flight . | . . . . . . . Fastest Speed 50 | 50 120 240 240 240 150 50 Average Speed 218 | 107 220 240 240 240 200 219 Slowest Speed 480 | 120 240 240 240 240 240 480 Overloaded Moves . | . . . . . . . Propulsion Burnouts . | . . . . . . . Robots Hopped . | . . . . . . . Potential Cave-ins . | . . . . . . . Cave-ins Triggered . | . . . . . . . Exploration Rate (%) 51 | 3 75 59 89 18 80 36 Regions Visited 6 Branch Regions 3 Pre-discovered Areas . | . . . . . . . Known Exits Taken 1 | . 1 . . . . . Unknown Exits Taken 5 | 1 . 1 1 1 1 . Scrap Searched 1 | . . 1 . . . . Spaces Dug 44 | . 28 . . . 14 2 Terrain Destroyed 372 | . 85 10 . 24 36 217 Melee 15 | . . . . . 14 1 Projectile 11 | . . . . 1 2 8 AOE 345 | . 85 10 . 23 19 208 Terrain Rammed . | . . . . . . . Walls Destroyed . | . . . . . . . Machines Disabled . | . . . . . . . Actions | -11 -10 -10 -10 -9 -8 -7 --------- Run | Yrd Mat Min Exi Min Mat Fac Total 5175 | 69 772 436 611 57 1290 1940 Wait 335 | . 11 4 . . 105 215 Move 4001 | 55 649 364 540 42 1000 1351 Hop . | . . . . . . . Pick Up 115 | 4 32 7 4 2 24 42 Fast Attach 41 | 6 6 3 1 . 4 21 Attach 43 | . 3 2 1 . 8 29 Detach 18 | . 4 . . . 2 12 Swap 106 | . 12 11 2 4 22 55 Drop 111 | . 19 12 6 2 32 40 Fire 300 | 4 33 29 1 7 64 162 Melee 37 | . . 2 11 . 20 4 Ram . | . . . . . . . Kick 4 | . . . . . . 4 Crush 19 | . 3 2 . . 9 5 Escape Stasis . | . . . . . . . Rewire 45 | . . . 45 . . . Trap . | . . . . . . . Miscellaneous . | . . . . . . . Route ------- -11/Scrapyard -10/Materials (discovered 4 exits: [*Mat x2] / *Min x2) -10/Mines (discovered 2 exits: [*Mat] / *Exi) -10/Exiles -9/Mines (discovered 2 exits: *Mat x2) -8/Materials -7/Factory (discovered 1 exit: [*Fac]) History --------- Turn | Location | Event 4 | -11/Scrapyard | Discovered new exit (range 15) 85 | -11/Scrapyard | Entered Materials 219 | -10/Materials | Identified exit to Mines 302 | -10/Materials | Build established: Mutant 788 | -10/Materials | Discovered new exit (range 11) 968 | -10/Materials | Discovered new exit (range 7) 1697 | -10/Materials | Entered Mines 1706 | -10/Mines | Met a Derelict shopkeep closing up shop 1744 | -10/Mines | Met a Derelict bent on vengeance 1835 | -10/Mines | Learned Materials security intel 1973 | -10/Mines | Discovered new exit (range 7) 2264 | -10/Mines | Core integrity fell below 50% 2389 | -10/Mines | Build established: Scavenger-Mutant 2456 | -10/Mines | YI-UF0 nonchalantly dropped a Grenade Launcher on the ground 2510 | -10/Mines | Murdered YI-UF0 2519 | -10/Mines | Found Prototype Storage 2533 | -10/Mines | Found Prototype Launcher 2536 | -10/Mines | Identified YI-UF0's Doublenader 2689 | -10/Mines | Deemed a non-threat by the Exiles lab entrance 2689 | -10/Mines | Discovered new exit (range 5) 2701 | -10/Mines | Entered Exiles 2701 | -10/Exiles | Found Exiles lab destroyed 2941 | -10/Exiles | Opened EX-Vault 2953 | -10/Exiles | Found Supersonic Drone Bay 3028 | -10/Exiles | Build established: Mutant 3394 | -10/Exiles | Build established: Scavenger-Mutant 4065 | -10/Exiles | Discovered new exit (range 10) 4084 | -10/Exiles | Entered Mines 4084 | -9/Mines | Accompanied by 2 allies 4097 | -9/Mines | Found the Drone Emporium 4109 | -9/Mines | Found Prototype Device 4157 | -9/Mines | Assembled infested the area 4160 | -9/Mines | Discovered new exit (range 8) 4162 | -9/Mines | Assisted by a Guerilla fighting off Assembled 4199 | -9/Mines | Lost 3 allies 4202 | -9/Mines | Discovered new exit (range 15) 4211 | -9/Mines | Entered Materials 4211 | -8/Materials | Evolved 4 slots: Propulsion x1, Utility x1, Weapon x2 4212 | -8/Materials | Identified YI-UF0's Bottomless Matter Pit 4213 | -8/Materials | Identified Splice Drone Bay 4453 | -8/Materials | Build established: Scavenger-Tank 4962 | -8/Materials | Build established: Scavenger-Gunner 5262 | -8/Materials | Central database locked down 5606 | -8/Materials | Build established: Gunner 5707 | -8/Materials | Repaired Gauss Rifle 6430 | -8/Materials | Build established: Scavenger-Gunner 6635 | -8/Materials | Discovered new exit (range 16) 6682 | -8/Materials | Entered Factory 6682 | -7/Factory | Evolved 2 slots: Utility x2 7451 | -7/Factory | Cargo convoy interrupted 7483 | -7/Factory | Destroyed 14 combat bots 8282 | -7/Factory | First assault squad dispatched 8533 | -7/Factory | Build established: Hauler-Gunner 8972 | -7/Factory | Core integrity fell below 50% 9109 | -7/Factory | Lost 3 allies 9502 | -7/Factory | Discovered new exit (range 8) 9774 | -7/Factory | System corruption reached 10% 9841 | -7/Factory | Noticed a derelict Sapper rigging charges 9996 | -7/Factory | Fabricated Dispersion Rifle? 10065 | -7/Factory | Build established: Scavenger-Gunner 10130 | -7/Factory | Destroyed 7 combat bots 10361 | -7/Factory | High security lockdown imminent 10380 | -7/Factory | Core integrity fell below 20% 10423 | -7/Factory | Destroyed 7 combat bots 10441 | -7/Factory | High security lockdown engaged 10455 | -7/Factory | Lost 11 parts (1p4n1u5w) 10543 | -7/Factory | Released all parts (9) 10544 | -7/Factory | Destroyed by H-55 Commando with Assault Rifle Last Messages --------------- 10538_ G-50 Soldier unfolds itself. 10538_ L-41 Fighter unfolds itself. 10538_ G-47 Trooper unfolds itself. 10538_ I-36 Angel unfolds itself. 10539_ Slug penetrates I-36 Angel. 10539_ Penetrated by Slug. 10542_ Dropped Cargo Storage Unit. 10542_ Penetrated by Slug. 10543_ Released Imp. Deuterium Engine. 10543_ Released Hvy. Laser. 10543_ Released Hrd. Medium Armor Plating. 10543_ Released Cld. Pulse Rifle. 10543_ Released Adv. Treads. 10543_ Released Arm. Treads+. 10543_ Released Core Analyzer. 10543_ Released Imp. Proton Missile Launcher. 10543_ Released Imp. Cooling System. [Achievement: Live, Flee, And Rebuild] 10544_ Acquired Cld. VTOL Module. 10544_ Penetrated by Slug. Map ----- +----------------------------------------------------+ | | | | | | | | | | | | | | | ???????????????#############????????????? | | ???????????????# """T""" #????????????? | | ???????????????# #????????????? | | ???????????????# """ """ #????????????? | | ???????????????# """ """ #????????????? | | ???????????????#= """ """ #????????????? | | ???????????????# #????????????? | | ???????????????# = #????????????? | | ???????????##########+######????????????? | | ???????????# #???????????????? | | ??????###### #???????????????? | | ????### # ##??????????????? | | ??### # # # ###????????????? | | ??# # # ####?????????? | | ??# # = g ?????? | | ??# =[[! ?????? | | ??# = !]*!/ i / ?????? | | ??# [!!!!!] ! ?????? | | ??#"S *!!!@ = ?????? | | ??#"" %!!! h %h // ??????? | | ??# " % h // ??????? | | ??# l =%g% /! ???????? | | ??##### # g % ???????? | | ???# g | ????????? | | ???# " ?????????? | | ???# ?????????? | | ???# """" """"" ""??????????? | | ???# gg""""" """"" ""??????????? | | ####+## i g""" """ """?????????? | | # # ????????? | | # # ????????? | | # # ???????? | | # """ + ] ???????? | | # """ # ########|% ???????? | | # """ # ####### = ???????? | | # # +! # "????????? | | ####### # "" ! "????????? | | ??????# # " ! "????????? | | ??????# + "F "????????? | | ??????# # "" [ "????????? | | ??????# # % " ???????? | | ??????# ##+### " ???????? | | ??????# #?# " ???????? | +----------------------------------------------------+ Best States ------------- Heat Dissipation 61 Energy Generation 19 Energy Capacity 290 Matter Stores 300 Matter Capacity 300 Sight Range 20 Terrain Scan Density 10 Armor Coverage 450 Resistance: KI 30 Evasion (%) 55 Targeting Accuracy 8 Core Analysis 6 Recoil Reduction 5 Offensive Hacking 10 Authchip Count 2 Item Schematics ----------------- Enh. Autogun | -8/Materials | Scanalyzed Cld. VTOL Module | -7/Factory | Scanalyzed Dispersion Rifle | -7/Factory | Scanalyzed Robot Schematics ------------------ None Fabricated ------------ Dispersion Rifle | x2 | -7/Factory | Preloaded Repaired ---------- Gauss Rifle | 52% | -8/Materials Studied --------- Hpw. Shotgun | -8/Materials | Hacked Lgt. Treads | -8/Materials | Hacked Arm. Treads | -8/Materials | Hacked Gauss Rifle | -7/Factory | Hacked Alien Tech Used ----------------- None Achievements -------------- Botjacking Construction Begets Destruction DATA ERROR: Steam Global Achievement% Express Service For Emergencies Only Heavy Suspicion I Have A Map? Item+ Jackpot Live, Flee, And Rebuild Luggage Code Organ Harvest Overwhelming Spot Them First There's More Where That Came From Throw Away The Key Challenges ------------ None Game ------ Seed GuidedReflectiveBooster Manual? 0 Play Time 01:15:10 Cumulative 248.4 hours Start 2025.10.22 @ 14:35:47 End 2025.10.22 @ 15:51:55 Sessions 1 Manual Loads 0 Difficulty Rogue Special Mode None Game No. 267 Rogue 267 Adventurer 0 Explorer 0 Win Type - Total 3 Types 3/0/0/0/0/0/0/0/0/0 Lore% 74 Gallery% 70 Achievement% 39 Wizard Run 0 Options --------- Layout 0 ASCII 0 Keyboard 1 Movement Vi Keybinds 0 Fullscreen 2 Font 18/TerminusBold Map View 76x50 Zoom Use 0% Tactical HUD 1 Map Filters NONE Filters NONE Steam 1 RUN: 618240f4-8d3d-4022-9e57-7637f8b4f3c8